{"text_format":"3","workbook":"xlsx","n_sheets":2,"sheets":["ÚDAJE O RASTE","GRAF RASTU"],"not_rendered":{"charts":1,"defined_names":3},"read":"whole","date_system":"1900"}

{"sheet":"ÚDAJE O RASTE","index":0,"n_rows":23,"n_cols":8,"rows_kept":23,"merged":[[0,1,0,7],[1,2,1,7]]}
[null,"Graf rastu dieťaťa "]
[null,"Meno dieťaťa:","Meno"]
[null,"Vek","Kilogramy","Gramy","Hmotnosť (kg)","Percentil\nhmotnosti","Výška (cm)","Percentil\nvýšky"]
[null,"Pri narodení",7,null,{"$f":"IF(COUNT(Údaje[[#This Row],[Kilogramy]:[Gramy]])>0,Údaje[[#This Row],[Kilogramy]]+(Údaje[[#This Row],[Gramy]]/16),NA())","v":7},40,19.5,70]
[null,"4 dni",6,8,{"$f":"IF(COUNT(Údaje[[#This Row],[Kilogramy]:[Gramy]])>0,Údaje[[#This Row],[Kilogramy]]+(Údaje[[#This Row],[Gramy]]/16),NA())","v":6.5},41,19.5,70]
[null,"7 dní",6,4.8,{"$f":"IF(COUNT(Údaje[[#This Row],[Kilogramy]:[Gramy]])>0,Údaje[[#This Row],[Kilogramy]]+(Údaje[[#This Row],[Gramy]]/16),NA())","v":6.3},42,20,71]
[null,"11 dní",6,9.6,{"$f":"IF(COUNT(Údaje[[#This Row],[Kilogramy]:[Gramy]])>0,Údaje[[#This Row],[Kilogramy]]+(Údaje[[#This Row],[Gramy]]/16),NA())","v":6.6},43,20,71]
[null,"14 dní",7,null,{"$f":"IF(COUNT(Údaje[[#This Row],[Kilogramy]:[Gramy]])>0,Údaje[[#This Row],[Kilogramy]]+(Údaje[[#This Row],[Gramy]]/16),NA())","v":7},44,20,71]
[null,"18 dní",7,12,{"$f":"IF(COUNT(Údaje[[#This Row],[Kilogramy]:[Gramy]])>0,Údaje[[#This Row],[Kilogramy]]+(Údaje[[#This Row],[Gramy]]/16),NA())","v":7.75},45,21,72]
[null,"21 dní",8,8,{"$f":"IF(COUNT(Údaje[[#This Row],[Kilogramy]:[Gramy]])>0,Údaje[[#This Row],[Kilogramy]]+(Údaje[[#This Row],[Gramy]]/16),NA())","v":8.5},46,21,72]
[null,"25 dní",null,null,{"$f":"IF(COUNT(Údaje[[#This Row],[Kilogramy]:[Gramy]])>0,Údaje[[#This Row],[Kilogramy]]+(Údaje[[#This Row],[Gramy]]/16),NA())","v":{"$error":"#N/A"}}]
[null,"28 dní",null,null,{"$f":"IF(COUNT(Údaje[[#This Row],[Kilogramy]:[Gramy]])>0,Údaje[[#This Row],[Kilogramy]]+(Údaje[[#This Row],[Gramy]]/16),NA())","v":{"$error":"#N/A"}}]
[null,"5 týždňov",null,null,{"$f":"IF(COUNT(Údaje[[#This Row],[Kilogramy]:[Gramy]])>0,Údaje[[#This Row],[Kilogramy]]+(Údaje[[#This Row],[Gramy]]/16),NA())","v":{"$error":"#N/A"}}]
[null,"6 týždňov",null,null,{"$f":"IF(COUNT(Údaje[[#This Row],[Kilogramy]:[Gramy]])>0,Údaje[[#This Row],[Kilogramy]]+(Údaje[[#This Row],[Gramy]]/16),NA())","v":{"$error":"#N/A"}}]
[null,"7 týždňov",null,null,{"$f":"IF(COUNT(Údaje[[#This Row],[Kilogramy]:[Gramy]])>0,Údaje[[#This Row],[Kilogramy]]+(Údaje[[#This Row],[Gramy]]/16),NA())","v":{"$error":"#N/A"}}]
[null,"2 mesiace",null,null,{"$f":"IF(COUNT(Údaje[[#This Row],[Kilogramy]:[Gramy]])>0,Údaje[[#This Row],[Kilogramy]]+(Údaje[[#This Row],[Gramy]]/16),NA())","v":{"$error":"#N/A"}}]
[null,"3 mesiace",null,null,{"$f":"IF(COUNT(Údaje[[#This Row],[Kilogramy]:[Gramy]])>0,Údaje[[#This Row],[Kilogramy]]+(Údaje[[#This Row],[Gramy]]/16),NA())","v":{"$error":"#N/A"}}]
[null,"6 mesiacov",null,null,{"$f":"IF(COUNT(Údaje[[#This Row],[Kilogramy]:[Gramy]])>0,Údaje[[#This Row],[Kilogramy]]+(Údaje[[#This Row],[Gramy]]/16),NA())","v":{"$error":"#N/A"}}]
[null,"9 mesiacov",null,null,{"$f":"IF(COUNT(Údaje[[#This Row],[Kilogramy]:[Gramy]])>0,Údaje[[#This Row],[Kilogramy]]+(Údaje[[#This Row],[Gramy]]/16),NA())","v":{"$error":"#N/A"}}]
[null,"12 mesiacov",null,null,{"$f":"IF(COUNT(Údaje[[#This Row],[Kilogramy]:[Gramy]])>0,Údaje[[#This Row],[Kilogramy]]+(Údaje[[#This Row],[Gramy]]/16),NA())","v":{"$error":"#N/A"}}]
[null,"18 mesiacov",null,null,{"$f":"IF(COUNT(Údaje[[#This Row],[Kilogramy]:[Gramy]])>0,Údaje[[#This Row],[Kilogramy]]+(Údaje[[#This Row],[Gramy]]/16),NA())","v":{"$error":"#N/A"}}]
[null,"24 mesiacov",null,null,{"$f":"IF(COUNT(Údaje[[#This Row],[Kilogramy]:[Gramy]])>0,Údaje[[#This Row],[Kilogramy]]+(Údaje[[#This Row],[Gramy]]/16),NA())","v":{"$error":"#N/A"}}]
[null,"36 mesiacov",null,null,{"$f":"IF(COUNT(Údaje[[#This Row],[Kilogramy]:[Gramy]])>0,Údaje[[#This Row],[Kilogramy]]+(Údaje[[#This Row],[Gramy]]/16),NA())","v":{"$error":"#N/A"}}]

{"sheet":"GRAF RASTU","index":1,"n_rows":1,"n_cols":2,"rows_kept":1,"merged":[[0,1,1,1]]}
[null,"GRAF RASTU DIEŤAŤA"]